lending/lending_fUSD_20260110
["ID","MTS","AMOUNT","RATE_DAILY","PERIOD"]
[401179965,1768023041135,-150.0,0.0001674,2]
[401179966,1768023041145,-482.16927107,0.00016788,2]
[401179967,1768023041154,-150.0,0.000168,2]
[401179968,1768023041163,-150.0,0.000168,2]
[401179969,1768023041173,-150.0,0.000168,2]
[401179970,1768023041182,-150.0,0.000168,2]
[401179971,1768023041191,-150.0,0.0001683,2]
[401179972,1768023041201,-1000.0,0.00016843,2]
[401179973,1768023041211,-3805.2217052,0.00016862,2]
[401179974,1768023041221,-150.0,0.00016867,2]
[401179975,1768023041231,-1000.0,0.00016869,2]
[401179976,1768023041240,-150.0,0.0001692,2]
[401179977,1768023041250,-150.0,0.0001692,2]
[401179978,1768023041259,-150.0,0.00016933,2]
[401179979,1768023041268,-224.2535854,0.00016942,2]
[401179980,1768023041278,-150.0,0.00016971,2]
[401179981,1768023041287,-150.0,0.00016971,2]
[401179982,1768023041296,-150.0,0.00016971,2]
[401179983,1768023041306,-150.0,0.00017,2]
[401179984,1768023041315,-150.0,0.00017,2]
[401179985,1768023041325,-150.0,0.00017,2]
[401179986,1768023041334,-150.0,0.0001701,2]
[401179987,1768023041343,-3805.2217052,0.0001701,2]
[401179988,1768023041352,-1000.0,0.00017042,2]
[401179989,1768023041362,-150.0,0.00017067,2]
[401179990,1768023041371,-1000.0,0.00017099,2]
[401179991,1768023041380,-322.6107,0.00017099,2]
[401179992,1768023041390,-553.64373807,0.00017099,2]
[401179993,1768023041399,-1000.0,0.00017099,2]
[401179994,1768023041408,-998.0,0.00017099,2]
[401179995,1768023041418,-1000.0,0.00017099,2]
[401179996,1768023041427,-1000.0,0.00017099,2]
[401179997,1768023041436,-1000.0,0.00017099,2]
[401179998,1768023041446,-1000.0,0.00017099,2]
[401179999,1768023041455,-546.03496871,0.00017099,2]
[401180000,1768023041464,-250.0,0.00017099,2]
[401180001,1768023041473,-285.08125974,0.00017099,2]
[401180002,1768023041483,-628.77903219,0.00017099,2]
[401180003,1768023041495,-500.0,0.00017099,2]
[401180004,1768023041505,-424.19615825,0.00017099,2]
[401180005,1768023041515,-150.0,0.000171,2]
[401180006,1768023041524,-150.0,0.000171,2]
[401180007,1768023041533,-150.0,0.000171,2]
[401180008,1768023041543,-150.0,0.000171,2]
[401180009,1768023041553,-1069.8949683,0.000171,2]
[401180010,1768023041563,-1000.0,0.00017132,2]
[401180011,1768023041573,-150.0,0.00017133,2]
[401180012,1768023041582,-1000.0,0.00017158,2]
[401180013,1768023041592,-3805.2217052,0.00017158,2]
[401180014,1768023041602,-200.0,0.00017174,2]
[401180015,1768023041611,-150.0,0.0001719,2]
[401180016,1768023041621,-1000.0,0.00017199,2]
[401180017,1768023041631,-150.0,0.000172,2]
[401180018,1768023041640,-150.0,0.000172,2]
[401180019,1768023041650,-150.0,0.000172,2]
[401180020,1768023041659,-600.0,0.00017213,2]
[401180021,1768023041670,-150.0,0.00017229,2]
[401180022,1768023041680,-150.0,0.00017229,2]
[401180023,1768023041689,-150.0,0.00017229,2]
[401180024,1768023041698,-150.0,0.00017267,2]
[401180025,1768023041708,-168.0,0.00017278,2]
[401180026,1768023041717,-150.0,0.0001728,2]
[401180027,1768023041727,-150.0,0.0001728,2]
[401180028,1768023041736,-3805.2217052,0.00017307,2]
[401180029,1768023041745,-159.16121496,0.0001731,2]
[401180030,1768023041755,-500.0,0.00017315,2]
[401180031,1768023041765,-1000.0,0.00017329,2]
[401180032,1768023041775,-150.0,0.00017333,2]
[401180033,1768023041784,-150.0,0.0001737,2]
[401180034,1768023041794,-560.0,0.0001739,2]
[401180035,1768023041803,-150.0,0.000174,2]
[401180036,1768023041814,-150.0,0.000174,2]
[401180037,1768023041824,-150.0,0.000174,2]
[401180038,1768023041833,-150.0,0.000174,2]
[401180039,1768023041843,-224.25358539,0.00017421,2]
[401180040,1768023041852,-3805.2217052,0.00017455,2]
[401180041,1768023041861,-560.0,0.00017458,2]
[401180042,1768023041871,-150.0,0.0001746,2]
[401180043,1768023041881,-150.0,0.00017467,2]
[401180044,1768023041890,-659.3281205,0.00017479,2]
[401180045,1768023041899,-420.0,0.00017482,2]
[401180046,1768023041909,-150.0,0.00017486,2]
[401180047,1768023041918,-150.0,0.00017486,2]
[401180048,1768023041927,-150.0,0.00017486,2]
[401180049,1768023041937,-150.0,0.00017533,2]
[401180050,1768023041945,-150.0,0.00017534,2]
[401180051,1768023041952,-150.0,0.00017534,2]
[401180052,1768023041959,-500.0,0.00017534,2]
[401180053,1768023041965,-150.0,0.00017534,2]
[401180054,1768023041972,-500.0,0.00017534,2]
[401180055,1768023041979,-150.0,0.0001755,2]
[401180056,1768023041986,-150.0,0.0001755,2]
[401180057,1768023041993,-1680.0,0.00017569,2]
[401180058,1768023041999,-150.0,0.00017589,2]
[401180059,1768023042006,-155.6903429,0.00017589,2]
[401180060,1768023042013,-500.0,0.00017589,2]
[401180061,1768023042021,-150.0,0.00017589,2]
[401180062,1768023042027,-500.0,0.00017589,2]
[401180063,1768023042033,-150.0,0.000176,2]
[401180064,1768023042041,-150.0,0.000176,2]
[401180065,1768023042048,-150.0,0.000176,2]
[401180066,1768023042057,-3805.2217052,0.00017603,2]
[401180067,1768023042066,-150.0,0.0001764,2]
[401180068,1768023042076,-150.0,0.0001764,2]
[401180069,1768023042085,-5268.90491096,0.0001764,2]
[401180070,1768023042095,-560.0,0.00017641,2]
[401180071,1768023042104,-150.0,0.00017644,2]
[401180072,1768023042115,-500.0,0.00017644,2]
[401180073,1768023042124,-242.66022183,0.00017644,2]
[401180074,1768023042133,-574.12855637,0.00017647,2]
[401180075,1768023042143,-150.0,0.00017667,2]
[401180076,1768023042152,-150.0,0.00017698,2]
[401180077,1768023042161,-500.0,0.00017698,2]
[401180078,1768023042170,-150.0,0.000177,2]
[401180079,1768023042180,-1000.0,0.000177,2]
[401180080,1768023042189,-1323.16,0.00017707,2]
[401180081,1768023042198,-661.58,0.00017707,2]
[401180082,1768023042207,-661.58,0.00017707,2]
[401180083,1768023042217,-661.7,0.0001771,2]
[401180084,1768023042226,-661.58,0.0001771,2]
[401180085,1768023042235,-661.7,0.0001771,2]
[401180086,1768023042245,-1323.28,0.0001771,2]
[401180087,1768023042254,-670.49,0.0001771,2]
[401180088,1768023042263,-944.42,0.0001771,2]
[401180089,1768023042273,-661.7,0.00017711,2]
[401180090,1768023042283,-150.0,0.0001773,2]
[401180091,1768023042292,-150.0,0.00017733,2]
[401180092,1768023042302,-150.0,0.00017743,2]
[401180093,1768023042312,-150.0,0.00017743,2]
[401180094,1768023042321,-150.0,0.00017743,2]
[401180095,1768023042331,-3805.2217052,0.00017752,2]
[401180096,1768023042340,-150.0,0.00017753,2]
[401180097,1768023042349,-500.0,0.00017753,2]
[401180098,1768023042358,-600.0,0.00017761,2]
[401180099,1768023042367,-168.0,0.0001777,2]
[401180100,1768023042376,-168.0,0.00017772,2]
[401180101,1768023042387,-168.0,0.00017785,2]
[401180102,1768023042396,-2000.0,0.000178,2]
[401180103,1768023042405,-150.0,0.000178,2]
[401180104,1768023042414,-150.0,0.000178,2]
[401180105,1768023042423,-150.0,0.000178,2]
[401180106,1768023042433,-1000.0,0.000178,2]
[401180107,1768023042442,-250.0,0.00017808,2]
[401180108,1768023042451,-500.0,0.00017808,2]
[401180109,1768023042461,-500.0,0.00017808,2]
[401180110,1768023042470,-1000.0,0.00017813,2]
[401180111,1768023042479,-482.32936576,0.00017818,2]
[401180112,1768023042500,-150.0,0.0001782,2]
[401180113,1768023042511,-159.35537069,0.0001782,2]
[401180114,1768023042521,-1000.0,0.00017843,2]
[401180115,1768023042532,-152.0,0.00017843,3]
[401180116,1768023042542,-200.0,0.00017855,2]
[401180117,1768023042552,-2000.0,0.00017856,2]
[401180118,1768023042562,-200.0,0.00017856,2]
[401180119,1768023042572,-500.0,0.00017863,2]
[401180120,1768023042582,-501.30688292,0.00017863,2]
[401180121,1768023042593,-150.0,0.00017867,2]
[401180122,1768023042602,-1514.73825484,0.0001788,2]
[401180123,1768023042612,-2464.03631718,0.0001788,2]
[401180124,1768023042621,-3479.95468316,0.0001788,2]
[401180125,1768023042631,-4502.9853,0.0001788,2]
[401180126,1768023042641,-1000.0,0.0001789,2]
[401180127,1768023042651,-1740.0035,0.000179,2]
[401180128,1768023042661,-10000.0,0.000179,2]
[401180129,1768023042671,-1000.0,0.000179,2]
[401180130,1768023042972,-897.2649188,0.000179,2]
[401180131,1768023042982,-897.2649188,0.000179,2]
[401180132,1768023042992,-897.2649188,0.000179,2]
[401180133,1768023043001,-897.2649188,0.000179,2]
[401180134,1768023043010,-897.2649188,0.000179,2]
[401180135,1768023043020,-897.2649188,0.000179,2]
[401180136,1768023043030,-897.2649188,0.000179,2]
[401180137,1768023043040,-897.2649188,0.000179,2]
[401180138,1768023043057,-897.2649188,0.000179,2]
[401180139,1768023043067,-897.2649188,0.000179,2]
[401180140,1768023043077,-25000.0,0.000179,3]
[401180141,1768023043086,-897.2649188,0.000179,2]
[401180142,1768023043096,-3805.2217052,0.000179,2]
[401180143,1768023043105,-897.2649188,0.000179,2]
[401180144,1768023043114,-897.2649188,0.000179,2]
[401180145,1768023043123,-897.2649188,0.000179,2]
[401180146,1768023043133,-897.2649188,0.000179,2]
[401180147,1768023043142,-897.2649188,0.000179,2]
[401180148,1768023043152,-897.2649188,0.000179,2]
[401180149,1768023043161,-1000.0,0.000179,2]
[401180150,1768023043171,-19102.14113598,0.000179,2]
[401180151,1768023043180,-6921.0,0.000179,2]
[401180152,1768023043191,-150.0,0.0001791,2]
[401180153,1768023043201,-500.0,0.00017918,2]
[401180154,1768023043211,-433.16,0.00017919,2]
[401180155,1768023043220,-289.0,0.00017925,2]
[401180156,1768023043231,-151.0,0.00017929,2]
[401180157,1768023043241,-150.0,0.00017933,2]
[401180158,1768023043251,-1000.0,0.00017944,2]
[401180159,1768023043260,-181.00537575,0.00017946,2]
[401180160,1768023043270,-500.0,0.00017972,2]
[401180161,1768023043283,-303.0,0.00017973,2]
[401180162,1768023043293,-500.0,0.00017973,2]
[401180163,1768023043303,-500.0,0.00017973,2]
[401180164,1768023043312,-500.0,0.00017973,2]
[401180165,1768023043322,-507.85664462,0.00017973,2]
[401180166,1768023043332,-500.0,0.00017973,2]
[401180167,1768023043341,-500.0,0.00017973,2]
[401180168,1768023043351,-433.9562915,0.00017973,2]
[401180169,1768023043361,-300.29995774,0.00017973,2]
[401180170,1768023043371,-260.97339631,0.00017973,2]
[401180171,1768023043381,-641.77796518,0.00017973,2]
[401180172,1768023043390,-500.0,0.00017973,2]
[401180173,1768023043402,-500.0,0.00017973,2]
[401180174,1768023043412,-500.0,0.00017973,2]
[401180175,1768023043422,-500.0,0.00017973,2]
[401180176,1768023043431,-500.0,0.00017973,2]
[401180177,1768023043440,-500.0,0.00017973,2]
[401180178,1768023043450,-500.0,0.00017973,2]
[401180179,1768023043460,-500.0,0.00017973,2]
[401180180,1768023043469,-500.0,0.00017973,2]
[401180181,1768023043479,-500.0,0.00017973,2]
[401180182,1768023043490,-150.34167383,0.00017973,2]
[401180183,1768023043501,-191.10319937,0.00017973,2]
[401180184,1768023043512,-500.0,0.00017973,2]
[401180185,1768023043521,-500.0,0.00017973,2]
[401180186,1768023043531,-610.19552731,0.00017973,2]
[401180187,1768023043540,-500.0,0.00017973,2]
[401180188,1768023043550,-500.0,0.00017973,2]
[401180189,1768023043560,-500.0,0.00017973,2]
[401180190,1768023043570,-500.0,0.00017973,2]
[401180191,1768023043580,-500.0,0.00017973,2]
[401180192,1768023043589,-500.0,0.00017973,2]
[401180193,1768023043598,-500.0,0.00017973,2]
[401180194,1768023043608,-500.0,0.00017973,2]
[401180195,1768023043617,-500.0,0.00017973,2]
[401180196,1768023043627,-500.0,0.00017973,2]
[401180197,1768023043637,-500.0,0.00017973,2]
[401180198,1768023043646,-500.0,0.00017973,2]
[401180199,1768023043658,-500.0,0.00017973,2]
[401180200,1768023043668,-500.0,0.00017973,2]
[401180201,1768023043678,-500.0,0.00017973,2]
[401180202,1768023043688,-500.0,0.00017973,2]
[401180203,1768023043699,-571.47009533,0.00017973,2]
[401180204,1768023043708,-501.2767774,0.00017973,2]
[401180205,1768023043720,-500.0,0.00017973,2]
[401180206,1768023043736,-500.0,0.00017973,2]
[401180207,1768023043745,-500.0,0.00017973,2]
[401180208,1768023043755,-500.0,0.00017973,2]
[401180209,1768023043765,-588.0072514,0.00017973,2]
[401180210,1768023043776,-500.0,0.00017973,2]
[401180211,1768023043786,-150.0,0.00017973,2]
[401180212,1768023043795,-150.0,0.00017973,2]
[401180213,1768023043805,-500.0,0.00017982,2]
[401180214,1768023043815,-766.11378665,0.0001799,2]
[401180215,1768023043824,-766.11378665,0.0001799,2]
[401180216,1768023043834,-500.0,0.00017997,2]
[401180217,1768023043844,-6435.5577936,0.00017998,2]
[401180218,1768023043854,-152.7812413,0.00017998,2]
[401180219,1768023043863,-18767.2055381,0.00017998,2]
[401180220,1768023043873,-140294.9399248,0.00017998,2]
[401180221,1768023043883,-666.0,0.00017999,2]
[401180222,1768023043893,-300.0,0.00017999,2]
[401180223,1768023043903,-300.0,0.00017999,2]
[401180224,1768023043912,-276.645,0.00017999,2]
[401180225,1768023043922,-244.63188995,0.00017999,2]
[401180226,1768023043932,-300.0,0.00017999,2]
[401180227,1768023043942,-11563.77530464,0.00017999,2]
[401180228,1768023043952,-500.0,0.00017999,2]
[401180229,1768023043961,-500.0,0.00017999,2]
[401180230,1768023043970,-500.0,0.00017999,2]
[401180231,1768023043980,-500.0,0.00017999,2]
[401180232,1768023043989,-500.0,0.00017999,2]
[401180233,1768023043998,-206.94175193,0.00017999,2]
[401180234,1768023044008,-174.02592696,0.00018,2]
[401180235,1768023044017,-227.98056769,0.00018,2]
[401180236,1768023044027,-211.71180964,0.00018,2]
[401180237,1768023044038,-168.95489245,0.00018,2]
[401180238,1768023044048,-249.3099586,0.00018,2]
[401180239,1768023044057,-287.19045458,0.00018,2]
[401180240,1768023044067,-195.60258078,0.00018,2]
[401180241,1768023044077,-299.10146822,0.00018,2]
[401180242,1768023044087,-160.35362265,0.00018,2]
[401180243,1768023044097,-173.03993865,0.00018,2]
[401180244,1768023044106,-247.12115074,0.00018,2]
[401180245,1768023044116,-216.172863,0.00018,2]
[401180246,1768023044126,-967.81675235,0.00018,2]
[401180247,1768023044135,-1000.0,0.00018,2]
[401180248,1768023044146,-1000.0,0.00018,2]
[401180249,1768023044155,-1000.0,0.00018,2]
[401180250,1768023044165,-326.69839869,0.00018,2]
[401180251,1768023044174,-2075574.26860806,0.00018,2]
[401180252,1768023044194,-472.71558463,0.00018,2]
[401180253,1768023044442,-500.0,0.00017644,2]
[401180254,1768023044451,-187.61147328,0.00017698,2]
[401180263,1768024231883,-280.0,0.00015587,2]
[401180264,1768024231893,-885.66,0.000156,7]
[401180265,1768024231905,-868.46461215,0.000156,7]
[401180266,1768024231917,-945.87538785,0.000156,7]
[401180267,1768024231927,-1200.0,0.00015816,2]
[401180268,1768024231936,-300.0,0.00015816,2]
[401180269,1768024231946,-177.92236706,0.00015817,2]
[401180270,1768024231956,-157.98867282,0.00015817,2]
[401180271,1768024231966,-2892.99598708,0.00015817,2]
[401180272,1768024231975,-384.15026664,0.00015817,2]
[401180273,1768024231984,-384.15026664,0.00015817,2]
[401180274,1768024231994,-4306.75245075,0.00015908,2]
[401180275,1768024232031,-820.548499,0.00015908,2]
[401180276,1768024232043,-999.0,0.00015908,2]
[401180277,1768024232061,-564.72626631,0.00015908,2]
[401180278,1768024232072,-1907.47582606,0.00015908,2]
[401180279,1768024232084,-3145.62502986,0.00015908,2]
[401180280,1768024232100,-434.42185821,0.00015908,2]
[401180281,1768024232119,-2108.01942602,0.00015908,2]
[401180282,1768024232130,-14458.01180516,0.00015908,2]
[401180288,1768024237973,-506.31274187,0.00015908,2]
[401180289,1768024238091,-720.01455073,0.00015908,2]
[401180290,1768024238149,-1889.45118596,0.00015908,2]
[401180291,1768024238161,-4932.1520001,0.00015908,2]
[401180292,1768024238173,-2824.62425539,0.00015908,2]
[401180309,1768024240050,-972.15998328,0.00015908,2]
[401180310,1768024240325,-959410.7041213,0.00015908,2]
[401180311,1768024240335,-1000.0,0.00015918,2]
[401180312,1768024240344,-1000.0,0.00015926,2]
[401180313,1768024240354,-2500.0,0.00015944,2]
[401180314,1768024240363,-487.89853236,0.00015999,2]
[401180315,1768024240373,-9999.99,0.00016008,2]
[401180316,1768024240383,-150.99,0.00016008,2]
[401180317,1768024240392,-3816.58,0.00016008,2]
[401180318,1768024240403,-9999.99,0.00016008,2]
[401180319,1768024240412,-299.99,0.00016008,2]
[401180320,1768024240422,-1197.7,0.00016008,2]
[401180321,1768024240432,-743.345,0.00016043,2]
[401180322,1768024240442,-2892.99598699,0.00016048,2]
[401180323,1768024240452,-384.15026664,0.00016115,2]
[401180324,1768024240461,-384.15026664,0.00016115,2]
[401180325,1768024240471,-150.0,0.00016119,2]
[401180326,1768024240480,-150.0,0.000162,2]
[401180327,1768024240489,-150.0,0.000162,2]
[401180328,1768024240498,-150.0,0.000162,2]
[401180329,1768024240509,-150.0,0.000162,2]
[401180330,1768024240518,-150.0,0.000162,2]
[401180331,1768024240528,-150.0,0.000162,2]
[401180332,1768024240537,-150.0,0.000162,2]
[401180333,1768024240547,-150.0,0.000162,2]
[401180335,1768024240556,-150.0,0.000162,2]
[401180337,1768024240566,-150.0,0.000162,2]
[401180339,1768024240576,-150.0,0.000162,2]
[401180340,1768024240585,-150.0,0.000162,2]
[401180341,1768024240594,-150.0,0.000162,2]
[401180342,1768024240605,-150.25923791,0.000162,2]
[401180343,1768024240614,-150.0,0.000162,2]
[401180344,1768024240623,-150.0,0.00016224,2]
[401180345,1768024240633,-150.0,0.00016226,2]
[401180346,1768024240642,-150.0,0.00016228,2]
[401180347,1768024240652,-150.0,0.00016229,2]
[401180348,1768024240661,-150.0,0.00016232,2]
[401180349,1768024240670,-150.0,0.00016233,2]
[401180350,1768024240679,-150.0,0.00016235,2]
[401180351,1768024240688,-150.0,0.00016247,2]
[401180352,1768024240697,-500.0,0.00016252,2]
[401180353,1768024240706,-150.0,0.00016252,2]
[401180354,1768024240715,-150.0,0.00016256,2]
[401180355,1768024240724,-150.0,0.00016258,2]
[401180356,1768024240732,-150.0,0.00016264,2]
[401180357,1768024240741,-150.0,0.00016264,2]
[401180358,1768024240750,-150.0,0.00016267,2]
[401180359,1768024240759,-150.0,0.00016269,2]
[401180360,1768024240768,-150.0,0.00016271,2]
[401180361,1768024240777,-500.0,0.00016273,2]
[401180362,1768024240787,-150.0,0.00016278,2]
[401180363,1768024240796,-2892.99598699,0.0001628,2]
[401180364,1768024240806,-150.0,0.00016284,2]
[401180365,1768024240815,-150.0,0.00016287,2]
[401180366,1768024240825,-150.0,0.0001629,2]
[401180367,1768024240835,-150.0,0.00016295,2]
[401180368,1768024240850,-150.0,0.00016296,2]
[401180369,1768024240860,-150.0,0.000163,2]
[401180370,1768024240871,-150.0,0.00016304,2]
[401180371,1768024240881,-150.0,0.00016304,2]
[401180372,1768024240891,-161.9,0.00016307,2]
[401180373,1768024240901,-46965.42,0.00016309,2]
[401180374,1768024240911,-150.0,0.00016312,2]
[401180375,1768024240921,-150.0,0.00016316,2]
[401180376,1768024240932,-150.0,0.00016318,2]
[401180377,1768024240942,-1000.0,0.00016328,2]
[401180378,1768024240952,-150.0,0.00016329,2]
[401180379,1768024240962,-150.0,0.00016329,2]
[401180380,1768024240972,-150.0,0.0001633,2]
[401180381,1768024240982,-150.0,0.00016333,2]
[401180382,1768024240992,-150.0,0.00016338,2]
[401180383,1768024241004,-150.0,0.00016341,2]
[401180384,1768024241015,-150.0,0.00016342,2]
[401180385,1768024241026,-1000.0,0.00016345,2]
[401180386,1768024241036,-150.0,0.00016345,2]
[401180387,1768024241046,-150.0,0.00016357,2]
[401180388,1768024241056,-150.0,0.00016361,2]
[401180389,1768024241066,-150.0,0.00016364,2]
[401180390,1768024241076,-150.0,0.00016366,2]
[401180391,1768024241086,-150.0,0.00016367,2]
[401180392,1768024241095,-150.0,0.00016369,2]
[401180393,1768024241106,-150.0,0.00016373,2]
[401180394,1768024241117,-150.0,0.00016374,2]
[401180395,1768024241126,-150.0,0.0001638,2]
[401180396,1768024241136,-150.0,0.00016383,2]
[401180397,1768024241145,-150.0,0.00016389,2]
[401180398,1768024241155,-150.0,0.00016393,2]
[401180399,1768024241165,-150.0,0.00016393,2]
[401180400,1768024241175,-150.0,0.00016397,2]
[401180401,1768024241184,-150.0,0.000164,2]
[401180402,1768024241194,-150.0,0.00016403,2]
[401180403,1768024241204,-150.0,0.00016408,2]
[401180404,1768024241214,-150.0,0.00016409,2]
[401180405,1768024241224,-384.15026664,0.00016412,2]
[401180406,1768024241233,-384.15026664,0.00016412,2]
[401180407,1768024241242,-150.0,0.00016413,2]
[401180408,1768024241252,-150.0,0.00016425,2]
[401180409,1768024241263,-150.0,0.00016425,2]
[401180410,1768024241273,-150.0,0.00016432,2]
[401180411,1768024241283,-150.0,0.00016433,2]
[401180412,1768024241294,-150.0,0.00016435,2]
[401180413,1768024241303,-150.0,0.00016437,2]
[401180414,1768024241314,-500.0,0.00016438,2]
[401180415,1768024241324,-500.0,0.00016438,2]
[401180416,1768024241334,-500.0,0.00016438,2]
[401180417,1768024241344,-500.0,0.00016438,2]
[401180418,1768024241353,-8860.89,0.00016438,2]
[401180419,1768024241362,-600.0,0.00016438,2]
[401180420,1768024241372,-150.0,0.00016442,2]
[401180421,1768024241382,-150.0,0.00016453,2]
[401180422,1768024241391,-150.0,0.00016457,2]
[401180423,1768024241400,-150.0,0.00016457,2]
[401180424,1768024241410,-150.0,0.00016461,2]
[401180425,1768024241421,-150.0,0.00016461,2]
[401180426,1768024241431,-150.0,0.00016461,2]
[401180427,1768024241440,-150.0,0.00016467,2]
[401180428,1768024241450,-150.0,0.0001647,2]
[401180429,1768024241460,-150.0,0.00016477,2]
[401180430,1768024241470,-150.0,0.00016481,2]
[401180431,1768024241479,-150.0,0.00016484,2]
[401180432,1768024241489,-150.0,0.00016487,2]
[401180433,1768024241499,-150.0,0.00016489,2]
[401180434,1768024241508,-150.0,0.0001649,2]
[401180435,1768024241518,-150.0,0.000165,2]
[401180436,1768024241527,-150.0,0.00016508,2]
[401180437,1768024241536,-150.0,0.00016509,2]
[401180438,1768024241546,-2892.99598699,0.00016511,2]
[401180439,1768024241555,-150.0,0.00016512,2]
[401180440,1768024241565,-150.0,0.00016513,2]
[401180441,1768024241575,-1000.0,0.00016515,2]
[401180442,1768024241585,-150.0,0.00016519,2]
[401180443,1768024241594,-150.0,0.00016521,2]
[401180444,1768024241604,-150.0,0.00016521,2]
[401180445,1768024241614,-150.0,0.00016527,2]
[401180446,1768024241623,-150.0,0.00016532,2]
[401180447,1768024241632,-150.0,0.00016533,2]
[401180448,1768024241643,-150.0,0.00016537,2]
[401180449,1768024241652,-150.0,0.00016539,2]
[401180450,1768024241662,-150.0,0.00016546,2]
[401180451,1768024241672,-150.0,0.00016548,2]
[401180452,1768024241682,-150.0,0.00016554,2]
[401180453,1768024241692,-150.0,0.00016555,2]
[401180454,1768024241701,-150.0,0.0001656,2]
[401180455,1768024241710,-1000.0,0.00016565,2]
[401180456,1768024241720,-1740.0035,0.00016565,2]
[401180457,1768024241729,-150.0,0.00016565,2]
[401180458,1768024241739,-150.0,0.00016566,2]
[401180459,1768024241748,-150.0,0.00016567,2]
[401180460,1768024241758,-150.0,0.00016577,2]
[401180461,1768024241768,-150.0,0.00016579,2]
[401180462,1768024241778,-150.0,0.00016581,2]
[401180463,1768024241787,-150.0,0.00016586,2]
[401180464,1768024241797,-150.0,0.00016586,2]
[401180465,1768024241807,-150.0,0.00016591,2]
[401180466,1768024241817,-150.0,0.00016594,2]
[401180467,1768024241827,-150.0,0.000166,2]
[401180468,1768024241836,-150.0,0.00016603,2]
[401180469,1768024241847,-150.0,0.00016606,2]
[401180470,1768024241857,-150.0,0.00016615,2]
[401180471,1768024241867,-150.0,0.00016617,2]
[401180472,1768024241878,-150.0,0.00016618,2]
[401180473,1768024241887,-150.0,0.00016622,2]
[401180474,1768024241896,-150.0,0.00016626,2]
[401180475,1768024241906,-150.0,0.00016633,2]
[401180476,1768024241916,-150.0,0.00016635,2]
[401180477,1768024241926,-150.0,0.00016643,2]
[401180478,1768024241936,-150.0,0.0001665,2]
[401180479,1768024241946,-150.0,0.0001665,2]
[401180480,1768024241956,-150.0,0.0001665,2]
[401180481,1768024241966,-150.0,0.0001665,2]
[401180482,1768024241976,-150.0,0.0001665,2]
[401180483,1768024241985,-150.0,0.0001665,2]
[401180484,1768024241995,-150.0,0.0001665,2]
[401180485,1768024242009,-150.0,0.0001665,2]
[401180486,1768024242019,-418.0,0.00016653,2]
[401180487,1768024242028,-150.0,0.00016665,2]
[401180488,1768024242039,-150.0,0.00016667,2]
[401180489,1768024242049,-150.0,0.0001667,2]
[401180490,1768024242058,-150.0,0.00016674,2]
[401180491,1768024242068,-150.0,0.00016678,2]
[401180492,1768024242080,-150.0,0.00016682,2]
[401180493,1768024242090,-150.0,0.00016685,2]
[401180494,1768024242100,-150.0,0.00016691,2]
[401180495,1768024242110,-150.0,0.00016694,2]
[401180496,1768024242120,-150.0,0.00016696,2]